bitfinex-derivatives/quotes_SOLF0:USTF0_20241025
["timestamp","ask_amount","ask_price","bid_price","bid_amount"]
[1729845787669,4.46,172.77,172.68,8.03488385]
[1729845787964,0.99985045,172.76,172.7,8.03488385]
[1729845788163,0.99981847,172.75,172.7,8.03488385]
[1729845788565,0.99981814,172.74,172.7,8.03488385]
[1729845788763,0.99981814,172.75,172.7,8.03488385]
[1729845788968,0.99981814,172.74,172.7,8.03488385]
[1729845789360,8.03488385,172.77,172.71,8.03488385]
[1729845789567,2.8959,172.75,172.71,8.03488385]
[1729845789872,0.99971671,172.74,172.71,8.03488385]
[1729845790071,8.03488385,172.77,172.71,8.03488385]
[1729845790269,7.41473748,172.79,172.71,8.03488385]
[1729845790270,3.89539733,172.76,172.71,8.03488385]
[1729845790465,10.93058385,172.76,172.71,8.03488385]
[1729845790670,2.8957,172.76,172.71,8.03488385]
[1729845790869,7.41473748,172.79,172.71,8.03488385]
[1729845791172,9.03455943,172.78,172.71,8.03488385]
[1729845791367,0.99967558,172.77,172.71,10.93138385]
[1729845791965,0.99967558,172.77,172.71,8.03488385]
[1729845792165,8.03488385,172.78,172.71,8.03488385]
[1729845792166,3.8955905,172.76,172.71,8.03488385]
[1729845792367,2.8959,172.76,172.71,8.03488385]
[1729845792563,2.8959,172.75,172.71,8.03488385]
[1729845792771,8.03488385,172.74,172.63,1.4492071]
[1729845793074,8.03488385,172.73,172.67,8.03488385]
[1729845793279,3.8587,172.78,172.67,12.49488385]
[1729845793577,8.03488385,172.74,172.68,8.03488385]
[1729845793775,0.99983729,172.73,172.68,8.03488385]
[1729845794074,2.8965,172.72,172.68,8.03488385]
[1729845799081,2.8965,172.72,172.67,7.3572]
[1729845799272,2.8964,172.72,172.67,12.49488385]
[1729845799682,8.03488385,172.74,172.67,8.03488385]
[1729845799882,8.03488385,172.69,172.62,1.2254]
[1729845800183,3.8587,172.78,172.63,4.78]
[1729845800184,8.03488385,172.75,172.63,4.78]
[1729845800382,9.03472864,172.74,172.63,4.78]
[1729845800785,8.6798,172.91,172.68,8.03488385]
[1729845800786,337.0,172.87,172.68,8.03488385]
[1729845801084,8.6798,172.91,172.68,8.03488385]
[1729845801085,8.03488385,172.74,172.68,8.03488385]
[1729845801271,2.8964,172.73,172.68,8.03488385]
[1729845801675,8.03488385,172.74,172.66,2.8974]
[1729845801676,2.8964,172.72,172.66,2.8974]
[1729845801979,10.93128385,172.72,172.66,10.93228385]
[1729845802370,8.03488385,172.72,172.66,8.03488385]
[1729845802579,62.6,172.88,172.71,8.03488385]
[1729845802774,8.03488385,172.79,172.73,8.03488385]
[1729845802979,0.99969407,172.78,172.75,2.8959]
[1729845803189,0.99969407,172.77,172.73,8.03488385]
[1729845803482,1.2656,172.84,172.76,8.03488385]
[1729845803786,8.03488385,172.82,172.76,10.93048385]
[1729845804084,0.99950851,172.81,172.76,10.93048385]
[1729845804272,8.03488385,172.82,172.76,10.93048385]
[1729845804476,0.99950526,172.81,172.76,10.93048385]
[1729845804877,0.999494,172.8,172.76,10.93048385]
[1729845805080,8.03488385,172.82,172.76,10.93048385]
[1729845805275,0.9994932,172.81,172.76,10.93048385]
[1729845806282,0.9994932,172.8,172.77,8.03488385]
[1729845806485,10.92958385,172.83,172.77,10.93048385]
[1729845806684,0.99949178,172.82,172.77,10.93048385]
[1729845806882,0.99949178,172.82,172.77,8.03488385]
[1729845807482,8.03488385,172.83,172.77,8.03488385]
[1729845807685,0.99934558,172.82,172.77,10.93028385]
[1729845808390,8.03488385,172.82,172.77,8.03488385]
[1729845808579,8.03488385,172.82,172.72,2.4699]
[1729845808893,8.03488385,172.8,172.74,8.03488385]
[1729845809884,2.8953,172.79,172.74,8.03488385]
[1729845810082,8.03488385,172.8,172.74,8.03488385]
[1729845810592,8.03488385,172.82,172.75,8.03488385]
[1729845810790,0.99937676,172.81,172.75,10.93068385]
[1729845811091,8.03488385,172.82,172.75,8.03488385]
[1729845811692,8.03488385,172.82,172.76,2.8957]
[1729845812791,0.99935347,172.81,172.77,8.03488385]
[1729845812996,0.99935347,172.8,172.78,2.8954]
[1729845813293,8.03488385,172.83,172.78,2.8954]
[1729845813493,0.99933182,172.82,172.77,2.8955]
[1729845813695,5.14,172.9,172.78,8.03488385]
[1729845813901,8.03488385,172.85,172.78,8.03488385]
[1729845814082,0.99926272,172.84,172.77,5.14]
[1729845814280,5.14,172.89,172.8,8.03488385]
[1729845814281,0.99926272,172.83,172.8,8.03488385]
[1729845814484,0.99926272,172.85,172.8,8.03488385]
[1729845814692,0.99926272,172.84,172.8,8.03488385]
[1729845814897,0.99926272,172.85,172.8,8.03488385]
[1729845815090,0.99926272,172.84,172.8,8.03488385]
[1729845815491,0.99926272,172.84,172.77,8.03488385]
[1729845815492,8.03488385,172.83,172.77,8.03488385]
[1729845815689,0.99926272,172.82,172.77,13.17488385]
[1729845816197,0.99927874,172.81,172.77,8.03488385]
[1729845816394,0.99927874,172.82,172.77,8.03488385]
[1729845816696,0.99932144,172.81,172.77,8.03488385]
[1729845816889,0.99932144,172.82,172.77,8.03488385]
[1729845817090,8.03488385,172.8,172.72,2.4699]
[1729845817286,1.2953,172.85,172.72,2.4699]
[1729845817287,9.03420529,172.79,172.74,8.03488385]
[1729845817487,0.99932144,172.78,172.74,8.03488385]
[1729845817997,0.99932144,172.78,172.73,5.14]
[1729845817998,0.99932144,172.78,172.73,8.0362]
[1729845818198,0.99932144,172.78,172.73,13.17488385]
[1729845820096,10.93018385,172.79,172.73,16.07098385]
[1729845820295,10.93018385,172.79,172.74,8.03488385]
[1729845820296,0.99944685,172.78,172.74,8.03488385]
[1729845821002,2.8953,172.79,172.74,8.03488385]
[1729845822302,2.8954,172.78,172.74,8.03488385]
[1729845822795,2.8954,172.78,172.73,13.17488385]
[1729845822995,2.8954,172.78,172.73,16.07108385]
[1729845823303,2.5902,172.84,172.77,8.03488385]
[1729845823496,9.03424557,172.83,172.73,5.14]
[1729845823695,0.99931813,172.82,172.76,8.03488385]
[1729845823896,2.895,172.81,172.76,8.03488385]
[1729845824298,5.4847,172.84,172.76,8.03488385]
[1729845824492,4.62,172.8,172.76,8.03488385]
[1729845824694,4.62,172.8,172.76,10.93048385]
[1729845824893,4.62,172.8,172.73,5.14]
[1729845825203,4.62,172.8,172.78,8.03488385]
[1729845825504,4.62,172.8,172.77,8.03488385]
[1729845827404,4.62,172.8,172.73,5.14]
[1729845827592,12.65488385,172.8,172.75,8.03488385]
[1729845827795,4.62,172.8,172.75,8.03488385]
[1729845828003,12.65488385,172.8,172.75,8.03488385]
[1729845828301,2.8953,172.79,172.75,8.03488385]
[1729845828894,2.8953,172.79,172.76,8.03488385]
[1729845829091,4.62,172.8,172.76,8.03488385]
[1729845829092,4.62,172.8,172.77,8.03488385]
[1729845830105,4.62,172.8,172.76,2.8956]
[1729845830297,4.62,172.8,172.76,10.93048385]
[1729845830607,4.62,172.8,172.76,2.8957]
[1729845830809,4.62,172.8,172.76,8.03488385]
[1729845831898,12.65488385,172.8,172.73,5.14]
[1729845832104,8.03488385,172.77,172.71,5.32]
[1729845832293,8.03488385,172.77,172.71,13.35488385]
[1729845832903,8.03488385,172.77,172.68,1.1801]
[1729845833102,4.62,172.8,172.7,10.93158385]
[1729845833103,2.8959,172.75,172.7,10.93158385]
[1729845833807,2.8959,172.75,172.71,8.03488385]
[1729845834003,1.1768,172.78,172.71,8.03488385]
[1729845834004,2.8956,172.77,172.72,2.8963]
[1729845835212,8.03488385,172.76,172.72,2.8963]
[1729845836405,10.93068385,172.76,172.72,2.8963]
[1729845837013,10.93068385,172.76,172.7,2.8966]
[1729845837208,8.03488385,172.75,172.7,8.03488385]
[1729845837610,8.03488385,172.75,172.71,2.8965]
[1729845837918,1.1768,172.78,172.7,8.03488385]
[1729845837919,8.03488385,172.76,172.7,8.03488385]
[1729845839003,1.1768,172.78,172.7,8.03488385]
[1729845839204,8.03488385,172.76,172.7,8.03488385]
[1729845839408,8.03488385,172.76,172.72,2.8964]
[1729845839614,8.03488385,172.76,172.7,8.03488385]
[1729845840112,8.03488385,172.76,172.72,2.8964]
[1729845841720,4.63,172.75,172.72,2.8964]
[1729845841914,4.63,172.75,172.69,5.32]
[1729845841915,4.63,172.75,172.74,2.8961]
[1729845842108,4.63,172.75,172.74,10.93098385]
[1729845842711,4.63,172.75,172.74,2.8961]
[1729845844013,4.62,172.8,172.74,13.35488385]
[1729845844317,4.62,172.8,172.79,2.8952]
[1729845845809,3.8931,172.8,172.79,8.2152]
[1729845846607,8.03488385,172.88,172.84,2.8943]
[1729845847009,8.03488385,172.88,172.83,8.03488385]
[1729845847211,8.03488385,172.88,172.85,2.8942]
[1729845847609,2.403,172.9,172.86,2.8939]
[1729845847813,0.99876197,172.89,172.86,2.8939]
[1729845848511,5.2964,172.9,172.86,2.8939]
[1729845848912,2.403,172.9,172.86,2.8939]
[1729845849315,5.32,172.92,172.84,8.03488385]
[1729845849514,8.03488385,172.9,172.87,2.8938]
[1729845850420,8.2131,172.92,172.87,2.8938]
[1729845850618,0.99865263,172.91,172.87,2.8938]
[1729845850816,0.99865263,172.91,172.9,2.8934]
[1729845851119,5.7799,173.11,172.9,2.8934]
[1729845851120,5.32,173.02,172.9,12.5027432]
[1729845851314,5.32,173.01,172.9,12.5027432]
[1729845851620,12.5027432,172.99,172.9,12.5027432]
[1729845852115,12.5027432,172.99,172.81,5.7898]
[1729845852116,2.8924,172.96,172.88,12.5027432]
[1729845852322,5.32,172.95,172.88,12.5027432]
[1729845852818,5.32,172.95,172.9,2.8934]
[1729845853411,8.2126,172.95,172.9,2.8934]
[1729845853615,8.2126,172.95,172.88,12.5027432]
[1729845853815,8.2126,172.95,172.89,2.8935]
[1729845854015,8.2126,172.95,172.88,12.5027432]
[1729845854823,8.2126,172.95,172.9,2.8933]
[1729845856019,2.8929,172.93,172.87,2.8937]
[1729845856242,2.8929,172.93,172.85,12.5027432]
[1729845856821,2.8934,172.9,172.85,2.8942]
[1729845857024,5.32,172.89,172.83,12.5027432]
[1729845857215,5.32,172.88,172.83,12.5027432]
[1729845857418,5.32,172.87,172.79,2.31607438]
[1729845857622,5.32,172.87,172.8,13.95049979]
[1729845857823,5.32,172.87,172.8,12.5027432]
[1729845858020,5.32,172.87,172.78,2.31607438]
[1729845858236,5.32,172.87,172.79,13.95066054]
[1729845858528,5.32,172.87,172.79,12.5027432]
[1729845859324,8.2139,172.87,172.82,2.8947]
[1729845860527,5.32,172.87,172.83,2.8945]
[1729845860932,5.32,172.87,172.81,12.5027432]
[1729845861128,5.32,172.87,172.83,2.8944]
[1729845861320,5.32,172.87,172.83,12.5027432]
[1729845861728,2.8942,172.85,172.78,1.44787392]
[1729845862021,5.32,172.87,172.77,1.2222]
[1729845862226,5.32,172.87,172.72,5.96940305]
[1729845862227,5.32,172.87,172.79,12.5027432]
[1729845863330,2.8942,172.86,172.79,12.5027432]
[1729845864532,2.8942,172.86,172.81,2.8948]
[1729845864734,2.8942,172.86,172.79,12.5027432]
[1729845865137,2.8942,172.86,172.82,2.8947]
[1729845866137,5.32,172.87,172.78,12.5027432]
[1729845866138,2.8944,172.85,172.78,12.5027432]
[1729845866430,1.1991,172.86,172.78,12.5027432]
[1729845866630,2.8949,172.81,172.77,2.8955]
[1729845866839,5.52,172.8,172.77,2.8955]
[1729845867225,5.52,172.8,172.72,2.31732522]
[1729845867428,6.739,172.8,172.73,1.44838618]
[1729845867636,6.739,172.8,172.73,12.5027432]
[1729845868043,9.6341,172.8,172.73,12.5027432]
[1729845869035,6.739,172.8,172.76,2.8957]
[1729845870338,6.739,172.8,172.75,2.8959]
[1729845870533,6.739,172.8,172.73,12.5027432]
[1729845870931,6.739,172.8,172.77,2.8954]
[1729845871134,6.739,172.8,172.73,12.5027432]
[1729845871539,6.739,172.8,172.71,2.31736193]
[1729845871732,6.739,172.8,172.76,2.8957]
[1729845871933,6.739,172.8,172.68,0.45073106]
[1729845871934,6.739,172.8,172.74,12.5027432]
[1729845872240,6.739,172.8,172.79,2.8952]
[1729845872927,1.219,172.8,172.79,2.8952]
[1729845873131,6.739,172.8,172.79,2.8952]
[1729845873636,6.739,172.8,172.76,2.8956]
[1729845874137,5.52,172.81,172.79,2.8952]
[1729845874441,1.2321,172.85,172.74,12.5027432]
[1729845874646,1.2321,172.85,172.81,2.8949]
[1729845874647,5.52,172.84,172.81,2.8949]
[1729845874938,1.2321,172.85,172.76,12.5027432]
[1729845875135,5.52,172.84,172.78,12.5027432]
[1729845875334,5.52,172.84,172.79,2.8951]
[1729845875535,5.52,172.84,172.78,12.5027432]
[1729845875736,5.52,172.84,172.76,12.5027432]
[1729845876240,5.52,172.84,172.81,2.8949]
[1729845876538,1.2321,172.85,172.81,2.8949]
[1729845876739,5.52,172.83,172.81,2.8949]
[1729845877734,5.52,172.83,172.8,2.895]
[1729845877933,5.52,172.83,172.76,12.5027432]
[1729845878139,2.8946,172.84,172.79,2.8951]
[1729845878444,13.5283091,172.83,172.79,2.8951]
[1729845880039,8.0083091,172.82,172.79,2.8951]
[1729845881445,5.52,172.81,172.79,2.8951]
[1729845882043,5.52,172.81,172.78,2.8954]
[1729845882441,5.52,172.81,172.76,8.0083091]
[1729845883243,5.52,172.81,172.77,2.8955]
[1729845884247,8.0083091,172.8,172.72,2.31722078]
[1729845884436,8.0083091,172.8,172.76,2.8957]
[1729845884939,8.0083091,172.8,172.75,8.0083091]
[1729845885144,8.0083091,172.8,172.77,2.8955]
[1729845885547,2.5076,172.88,172.67,5.52]
[1729845885548,5.52,172.82,172.81,2.8949]
[1729845885741,5.52,172.82,172.78,8.0083091]
[1729845886250,5.52,172.82,172.81,2.8949]
[1729845887442,2.5076,172.88,172.78,8.0083091]
[1729845887743,8.0083091,172.84,172.78,8.0083091]
[1729845887946,5.52,172.83,172.79,2.8951]
[1729845888138,5.52,172.83,172.78,8.0083091]
[1729845888544,5.52,172.83,172.79,1.44796867]
[1729845888844,5.52,172.83,172.78,8.0083091]
[1729845889148,5.52,172.83,172.81,2.8948]
[1729845889149,13.5283091,172.83,172.81,2.8948]
[1729845889342,4.16,172.82,172.81,2.8948]
[1729845893647,4.16,172.82,172.8,2.895]
[1729845893946,4.16,172.82,172.78,8.0083091]
[1729845894147,4.16,172.82,172.73,1.6864133]
[1729845894148,4.16,172.82,172.76,8.0083091]
[1729845894347,4.16,172.82,172.77,1.44809234]
[1729845894546,4.16,172.82,172.78,1.44812044]
[1729845894746,4.16,172.82,172.76,8.0083091]
[1729845894942,4.16,172.82,172.77,1.44812044]
[1729845895150,4.16,172.82,172.76,8.0083091]
[1729845895348,4.16,172.82,172.77,1.44812044]
[1729845895549,4.16,172.82,172.76,8.0083091]
[1729845896355,4.16,172.82,172.79,2.8951]
[1729845896858,8.0083091,172.81,172.79,2.8951]
[1729845897757,8.0083091,172.81,172.76,8.0083091]
[1729845897961,8.0083091,172.81,172.78,2.8953]
[1729845898251,8.0083091,172.8,172.73,9.2430091]
[1729845898758,8.0083091,172.8,172.74,1.44828118]
[1729845898953,8.0083091,172.8,172.73,9.2430091]
[1729845899155,8.0083091,172.8,172.74,1.44828152]
[1729845899351,8.0083091,172.8,172.75,1.44825467]
[1729845899657,8.0083091,172.8,172.73,9.2430091]
[1729845899859,8.0083091,172.8,172.74,1.44826872]
[1729845900046,8.0083091,172.8,172.73,8.0083091]
[1729845900246,8.0083091,172.8,172.74,1.44830967]
[1729845900458,8.0083091,172.8,172.73,8.0083091]
[1729845900459,8.0083091,172.8,172.75,2.8959]
[1729845900653,8.0083091,172.8,172.73,8.0083091]
[1729845900848,8.0083091,172.8,172.74,1.44830967]
[1729845901055,8.0083091,172.8,172.77,2.8956]
[1729845901755,5.42,172.79,172.78,2.8952]
[1729845901956,5.42,172.79,172.75,8.0083091]
[1729845902463,5.42,172.79,172.78,2.8954]
[1729845903363,9.58,172.82,172.81,2.8949]
[1729845903569,9.58,172.82,172.69,1.199]
[1729845903764,20.4831091,172.82,172.78,2.8953]
[1729845904063,12.4748,172.82,172.78,2.8953]
[1729845904267,20.4831091,172.82,172.78,2.8953]
[1729845904464,15.0631091,172.82,172.78,2.8953]
[1729845904767,5.42,172.81,172.78,2.8953]
[1729845905656,4.16,172.82,172.79,8.0083091]
[1729845905856,5.42,172.81,172.79,8.0083091]
[1729845906059,9.58,172.82,172.79,8.0083091]
[1729845906269,9.58,172.82,172.8,2.8949]
[1729845909158,9.58,172.82,172.79,8.0083091]
[1729845910262,9.58,172.82,172.8,2.895]
[1729845910863,4.16,172.82,172.81,2.8949]
[1729845911566,4.16,172.82,172.81,10.9032091]
[1729845911763,4.16,172.82,172.81,14.66782578]
[1729845912583,4.16,172.82,172.81,10.9032091]
[1729845912775,4.16,172.82,172.81,14.66739161]
[1729845917793,5.42,172.91,172.81,14.64247222]
[1729845917987,8.0083091,172.88,172.83,8.0083091]
[1729845918192,8.0083091,172.88,172.84,1.4477625]
[1729845918391,8.0083091,172.88,172.84,2.8943]
[1729845918587,8.0083091,172.88,172.83,8.0083091]
[1729845918787,8.0083091,172.88,172.84,1.44766033]
[1729845918982,8.0083091,172.88,172.85,2.8941]
[1729845920686,8.0083091,172.87,172.83,2.8944]
[1729845920888,8.0083091,172.87,172.84,1.44766683]
[1729845921197,8.0083091,172.87,172.85,1.44766683]
[1729845921390,8.0083091,172.87,172.83,2.8944]
[1729845921584,8.0083091,172.85,172.84,1.44766727]
[1729845921785,8.0083091,172.85,172.8,8.0083091]
[1729845921990,8.0083091,172.85,172.73,1.1877]
[1729845921991,8.0083091,172.84,172.81,3.7643073]
[1729845922288,5.2,172.86,172.82,1.4478105]
[1729845922494,8.0083091,172.83,172.8,2.895]
[1729845922696,8.0083091,172.83,172.81,1.4478924]
[1729845922893,8.0083091,172.84,172.81,4.3427924]
[1729845923493,8.0083091,172.84,172.81,2.8949]
[1729845924093,10.9029091,172.84,172.79,10.9034091]
[1729845924293,10.9029091,172.84,172.79,8.0083091]
[1729845925092,10.9029091,172.84,172.8,2.8949]
[1729845926093,10.9029091,172.84,172.81,3.76451936]
[1729845926298,10.9029091,172.84,172.82,1.44789206]
[1729845926299,8.0083091,172.84,172.82,1.44789206]
[1729845926498,8.0083091,172.84,172.83,1.44789206]
[1729845927596,8.0083091,172.84,172.81,2.8949]
[1729845929003,8.0083091,172.84,172.79,8.0083091]
[1729845929004,8.0083091,172.83,172.79,2.8951]
[1729845929194,8.0083091,172.83,172.8,2.31663216]
[1729845929394,8.0083091,172.83,172.81,2.31663216]
[1729845929600,8.0083091,172.83,172.77,8.0083091]
[1729845929801,8.0083091,172.83,172.78,2.31662882]
[1729845930004,8.0083091,172.83,172.8,2.8949]
[1729845930301,8.0083091,172.83,172.81,2.31662882]
[1729845930498,8.0083091,172.83,172.71,5.2]
[1729845930806,8.0083091,172.76,172.71,8.0083091]
[1729845931099,8.0083091,172.74,172.72,2.8964]
[1729845931292,8.0083091,172.74,172.66,5.2]
[1729845931493,8.0083091,172.73,172.69,8.0083091]
[1729845932300,8.0083091,172.73,172.72,2.8964]
[1729845932604,8.0083091,172.75,172.69,8.0083091]
[1729845932807,8.0083091,172.75,172.72,2.8963]
[1729845932992,8.0083091,172.75,172.64,6.4624]
[1729845933194,8.0083091,172.73,172.67,8.0083091]
[1729845933398,8.0083091,172.73,172.68,2.8969]
[1729845933698,8.0083091,172.73,172.67,8.0083091]
[1729845934001,8.0083091,172.73,172.72,2.8964]
[1729845934196,8.0083091,172.75,172.69,8.0083091]
[1729845934393,9.2977091,172.76,172.71,8.0083091]
[1729845934597,5.2,172.8,172.74,8.0083091]
[1729845934796,8.0083091,172.79,172.74,8.0083091]
[1729845935199,8.0083091,172.79,172.77,2.8956]
[1729845935704,9.2385091,172.79,172.77,2.8956]
[1729845937404,8.0083091,172.78,172.72,8.0083091]
[1729845937605,8.0083091,172.76,172.71,8.0083091]
[1729845937807,8.0083091,172.75,172.72,2.8964]
[1729845938110,13.2083091,172.75,172.72,2.8964]
[1729845938902,8.0083091,172.73,172.72,2.8964]
[1729845939103,8.0083091,172.73,172.68,8.0083091]
[1729845939303,8.0083091,172.73,172.72,2.8964]
[1729845940905,8.0083091,172.73,172.68,8.0083091]
[1729845941101,5.2,172.75,172.64,6.4624]
[1729845941102,8.0083091,172.72,172.64,1.2624]
[1729845941297,8.0083091,172.71,172.65,9.45716743]
[1729845941512,8.0083091,172.67,172.66,3.76705623]
[1729845941809,8.0083091,172.67,172.66,1.44885833]
[1729845942402,8.0083091,172.67,172.63,2.31869967]
[1729845942600,337.0,172.99,172.66,221.0]
[1729845942808,8.0083091,172.81,172.74,8.0083091]
[1729845943012,2.4561,172.85,172.75,1.44855225]
[1729845943313,2.4561,172.85,172.74,8.0083091]
[1729845943314,8.0083091,172.8,172.74,8.0083091]
[1729845943501,5.2,172.81,172.75,1.44846842]
[1729845943703,13.2083091,172.81,172.76,1.44834553]
[1729845944001,13.2083091,172.81,172.79,2.8952]
[1729845944403,5.2,172.81,172.79,2.8952]
[1729845944606,13.2083091,172.82,172.79,2.8952]
[1729845945910,8.0083091,172.8,172.66,2.92954635]
[1729845946113,5.2,172.82,172.72,8.0083091]
[1729845946114,8.0083091,172.78,172.72,8.0083091]
[1729845946409,5.24,172.81,172.8,2.8951]
[1729845946906,5.24,172.81,172.74,12.51973868]
[1729845947105,5.24,172.81,172.68,5.2]
[1729845947106,5.24,172.81,172.75,1.4483873]
[1729845947301,5.24,172.81,172.76,1.4483873]
[1729845947506,5.24,172.81,172.73,2.31739627]
[1729845947714,5.24,172.81,172.74,1.44837745]
[1729845947916,5.24,172.81,172.75,1.44837745]
[1729845948107,5.24,172.81,172.78,2.8953]
[1729845950118,10.44,172.81,172.78,2.8953]
[1729845953314,10.2,172.81,172.8,2.8951]
[1729845955718,10.2,172.81,172.79,2.8952]
[1729845956013,10.2,172.81,172.67,1.2384]
[1729845956213,10.2,172.81,172.75,2.8958]
[1729845956214,25.61463868,172.81,172.75,2.8958]
[1729845956409,25.61463868,172.81,172.69,12.51973868]
[1729845956410,22.71973868,172.81,172.7,2.31736404]
[1729845956609,22.71973868,172.81,172.71,3.76580671]
[1729845956905,22.71973868,172.81,172.72,3.76580671]
[1729845957109,22.71973868,172.81,172.67,1.2384]
[1729845957110,12.51973868,172.78,172.67,13.75813868]
[1729845957316,7.8556,172.77,172.68,3.76639303]
[1729845957512,6.225,172.77,172.69,3.76639303]
[1729845957809,2.5783,172.76,172.7,1.44861291]
[1729845958013,2.5783,172.76,172.73,2.8961]
[1729845958216,2.5783,172.76,172.68,2.31789432]
[1729845958410,2.5783,172.76,172.69,16.28630817]
[1729845958613,2.5783,172.76,172.73,2.8961]
[1729845958820,7.5383,172.76,172.69,12.51973868]
[1729845959017,7.5383,172.76,172.7,1.44866527]
[1729845959219,7.5383,172.76,172.75,2.8959]
[1729845960118,5.24,172.81,172.78,2.8953]
[1729845960322,4.96,172.8,172.74,1.44841354]
[1729845960614,4.96,172.8,172.78,2.8953]
[1729845961014,5.24,172.81,172.73,12.51973868]
[1729845961015,10.2,172.81,172.73,12.51973868]
[1729845961319,4.62,172.8,172.74,3.76558396]
[1729845961621,4.62,172.8,172.75,1.44831123]
[1729845961813,4.62,172.8,172.76,2.8956]
[1729845962123,4.62,172.8,172.73,12.51973868]
[1729845962321,7.5151,172.8,172.74,1.44836579]
[1729845962517,4.62,172.8,172.71,12.51973868]
[1729845962724,4.62,172.8,172.72,3.76580436]
[1729845962917,7.5151,172.8,172.75,2.8958]
[1729845963618,4.62,172.8,172.71,12.51973868]
[1729845963823,4.62,172.8,172.72,1.44852326]
[1729845964025,7.5151,172.8,172.76,2.8957]
[1729845965122,4.62,172.8,172.77,2.8955]
[1729845965326,4.62,172.8,172.73,12.51973868]
[1729845965523,4.62,172.8,172.74,3.76581891]
[1729845965822,4.62,172.8,172.75,1.44830777]
[1729845966021,4.62,172.8,172.79,2.8952]
[1729845966830,4.62,172.8,172.75,1.44833666]
[1729845967013,4.62,172.8,172.71,12.51973868]
[1729845967215,4.62,172.8,172.72,1.4484599]
[1729845967429,4.62,172.8,172.73,1.4484599]
[1729845967617,4.62,172.8,172.73,12.51973868]
[1729845967815,4.62,172.8,172.74,1.44846003]
[1729845968018,4.62,172.8,172.79,2.8952]
[1729845968217,4.62,172.8,172.73,12.51973868]
[1729845968418,4.62,172.8,172.74,1.44834254]
[1729845968616,4.62,172.8,172.75,1.44834254]
[1729845968926,4.62,172.8,172.79,2.8952]
[1729845971428,4.62,172.8,172.78,2.8954]
[1729845974329,1.258,172.82,172.78,2.8954]
[1729845974931,12.51973868,172.81,172.7,13.71743868]
[1729845975125,12.51973868,172.81,172.71,3.76570105]
[1729845975325,12.51973868,172.81,172.72,1.44834656]
[1729845975527,2.8951,172.8,172.7,18.67743868]
[1729845975732,4.96,172.79,172.71,3.76628741]
[1729845975923,4.96,172.79,172.76,2.8956]
[1729845976119,4.96,172.79,172.7,18.67743868]
[1729845976120,2.8945,172.84,172.75,12.51973868]
[1729845976427,4.96,172.86,172.8,2.8949]
[1729845977127,2.8944,172.84,172.8,2.8949]
[1729845977332,12.51973868,172.85,172.77,2.8955]
[1729845977527,13.70203868,172.85,172.75,12.51973868]
[1729845977729,12.51973868,172.82,172.62,2.65626279]
[1729845977924,7.3663,172.81,172.76,2.8956]
[1729845978325,2.8951,172.8,172.76,2.8956]
[1729845978825,7.3663,172.81,172.8,2.8951]
[1729845979524,2.8944,172.84,172.8,2.8951]
[1729845979725,7.8544,172.84,172.8,2.8951]
[1729845980427,4.96,172.84,172.8,2.8951]
[1729845980622,2.8946,172.83,172.8,2.8951]
[1729845981736,7.6946,172.83,172.8,2.8951]
[1729845982034,7.6946,172.83,172.75,1.44830133]
[1729845982237,7.6946,172.83,172.74,17.47973868]
[1729845982426,7.6946,172.83,172.75,1.44830167]
[1729845982733,4.8,172.83,172.76,1.44830167]
[1729845982925,4.8,172.83,172.74,12.51973868]
[1729845983133,4.8,172.83,172.75,1.44827323]
[1729845983332,4.8,172.83,172.74,17.31973868]
[1729845983333,4.8,172.83,172.79,2.8951]
[1729845983534,7.6946,172.83,172.79,2.8951]
[1729845985935,4.62,172.82,172.79,2.8951]
[1729845988430,12.62861583,172.82,172.79,2.8951]
[1729845989133,8.00861583,172.8,172.77,2.8955]
[1729845990139,8.00861583,172.8,172.76,8.00861583]
[1729845990140,8.00861583,172.8,172.78,2.8953]
[1729845992831,8.00861583,172.79,172.73,8.00861583]
[1729845994445,8.00861583,172.79,172.76,2.8957]
[1729845995336,8.00861583,172.79,172.74,2.8959]